bitfinex-derivatives/quotes_SOLF0:USTF0_20250117
["timestamp","ask_amount","ask_price","bid_price","bid_amount"]
[1737105511226,1.5123,216.28,216.14,4.6273]
[1737105511227,160.3554346,216.25,216.14,4.6273]
[1737105511429,4.6262,216.2,216.14,4.6273]
[1737105511727,160.3554346,216.25,216.14,4.6273]
[1737105512317,160.3554346,216.25,216.15,5.13625428]
[1737105513125,160.3554346,216.25,216.14,4.6273]
[1737105514228,4.6262,216.19,216.15,5.13724227]
[1737105514930,4.6262,216.19,216.14,4.6273]
[1737105515528,4.6262,216.19,216.13,4.6275]
[1737105515728,160.3554346,216.26,216.14,3.97433847]
[1737105516026,4.6267,216.17,216.14,5.13875624]
[1737105516224,160.3554346,216.26,216.14,5.13875624]
[1737105516426,160.3554346,216.25,216.14,5.13875624]
[1737105516826,160.3554346,216.25,216.1,4.6279]
[1737105517027,4.6258,216.21,216.11,3.97489702]
[1737105517229,160.3554346,216.24,216.12,9.11403946]
[1737105517430,160.3554346,216.24,216.12,5.13952566]
[1737105518029,160.3554346,216.24,216.08,1.5562]
[1737105518227,4.6275,216.13,216.09,11.54468477]
[1737105518426,4.6275,216.13,216.1,3.97431268]
[1737105518627,160.3554346,216.25,216.11,3.97431268]
[1737105518828,160.3554346,216.25,216.08,1.5562]
[1737105519028,160.3554346,216.25,216.09,5.18531662]
[1737105519230,160.3554346,216.25,216.08,1.5562]
[1737105519528,4.6259,216.21,216.09,5.13808223]
[1737105519728,160.3554346,216.25,216.09,5.13808223]
[1737105520230,160.3554346,216.25,216.08,1.5562]
[1737105520432,160.3554346,216.23,216.08,1.5562]
[1737105520830,4.6277,216.12,216.07,6.0969]
[1737105521031,160.3554346,216.23,216.1,4.6281]
[1737105521934,4.6272,216.15,216.07,1.4682]
[1737105522532,4.6272,216.15,216.08,5.13513125]
[1737105522830,174.2554346,216.23,216.08,5.13513125]
[1737105523333,174.2554346,216.23,215.98,5.06]
[1737105523334,4.6289,216.07,216.02,4.6298]
[1737105523533,4.6289,216.07,216.03,3.97027815]
[1737105523724,4.6291,216.06,216.0,4.6301]
[1737105523929,4.6291,216.06,216.01,3.97025624]
[1737105524127,4.6291,216.06,215.98,5.06]
[1737105524335,4.4222,216.16,216.02,5.1338543]
[1737105524533,4.6292,216.05,216.02,5.1338543]
[1737105525038,4.6292,216.05,216.0,4.6303]
[1737105527238,4.6289,216.07,216.02,4.6298]
[1737105527434,164.7776346,216.16,215.97,3.9637997]
[1737105527638,164.7776346,216.16,215.96,5.04]
[1737105527639,4.4222,216.16,215.96,5.04]
[1737105527842,4.4222,216.16,216.01,4.6299]
[1737105528244,4.6286,216.08,216.03,4.6296]
[1737105528440,4.6286,216.08,215.98,3.96199542]
[1737105528739,4.6286,216.08,215.96,5.04]
[1737105528941,4.6286,216.08,216.02,4.6296]
[1737105529537,4.6291,216.06,215.96,5.04]
[1737105529746,4.4222,216.16,215.96,5.04]
[1737105529943,4.4222,216.16,215.92,4.6229]
[1737105530237,4.4222,216.16,215.97,5.12314051]
[1737105530837,4.4222,216.16,216.0,4.6301]
[1737105531644,4.4222,216.16,216.03,4.6296]
[1737105531840,1.5354,216.16,216.01,5.02]
[1737105532042,4.6275,216.13,216.02,4.4782]
[1737105532339,1.5354,216.16,216.09,4.6283]
[1737105532543,4.6273,216.14,216.09,4.6283]
[1737105534445,4.6279,216.12,216.02,4.4782]
[1737105534647,160.3554346,216.22,216.02,4.4782]
[1737105534847,5.02,216.21,216.02,4.4782]
[1737105535039,5.02,216.21,216.06,4.629]
[1737105535535,4.6279,216.12,216.06,4.629]
[1737105536646,4.628,216.11,216.06,4.629]
[1737105536946,18.92,216.21,216.01,4.63]
[1737105537146,18.92,216.21,215.95,5.02]
[1737105537350,4.6292,216.05,215.96,3.96281814]
[1737105537549,4.6292,216.05,215.95,5.02]
[1737105537743,4.6292,216.05,215.96,3.96282263]
[1737105537942,4.6294,216.04,215.98,4.6305]
[1737105538841,4.6294,216.04,215.99,4.6305]
[1737105539647,4.6286,216.08,215.98,4.6306]
[1737105539847,1.5251,216.13,215.98,4.6306]
[1737105541146,1.5251,216.13,215.97,4.6309]
[1737105541353,5.0,216.12,215.97,4.6309]
[1737105542650,160.3554346,216.14,215.94,9.4898]
[1737105542849,160.3554346,216.14,215.95,3.96506125]
[1737105543049,160.3554346,216.14,215.94,9.4898]
[1737105543353,4.6296,216.03,215.97,4.6307]
[1737105543653,345.92270036,216.16,215.97,4.6307]
[1737105544154,4.6282,216.1,215.97,4.6307]
[1737105544350,160.3554346,216.15,215.97,4.6307]
[1737105544845,174.2554346,216.15,215.94,9.1212]
[1737105545155,174.2554346,216.15,215.94,4.4898]
[1737105545351,160.3554346,216.14,215.94,4.4898]
[1737105545554,160.3554346,216.14,215.95,4.6313]
[1737105546256,4.6299,216.02,215.96,4.6311]
[1737105546644,5.02,216.1,215.96,4.6311]
[1737105546851,4.4583,216.09,215.96,4.6311]
[1737105547254,4.4583,216.09,215.94,6.0921]
[1737105547455,4.6311,215.97,215.93,4.00673579]
[1737105547658,86.68,216.08,215.88,6.65306302]
[1737105547856,86.68,216.08,215.89,3.96466701]
[1737105548051,86.68,216.08,215.91,4.6321]
[1737105548657,86.68,216.08,215.88,1.4798]
[1737105548953,86.68,216.08,215.89,3.96593948]
[1737105549154,4.631,215.97,215.9,4.6323]
[1737105549356,100.58,216.08,215.88,1.4798]
[1737105549753,4.6315,215.95,215.88,4.6328]
[1737105549948,5.0,216.02,215.83,5.0]
[1737105550156,5.0,216.02,215.84,3.96856674]
[1737105550450,5.0,216.02,215.85,3.96856674]
[1737105550652,5.0,216.02,215.86,3.96856674]
[1737105550853,5.0,216.02,215.84,5.13152935]
[1737105551052,5.0,216.02,215.85,3.9679915]
[1737105551256,5.0,216.02,215.86,11.5245427]
[1737105551455,160.3554346,216.05,215.87,11.52401956]
[1737105551655,160.3554346,216.05,215.88,11.52401956]
[1737105551853,4.6303,216.0,215.94,4.6315]
[1737105552054,91.68,216.08,215.9,1.4477]
[1737105552654,160.3554346,216.07,215.89,1.4465]
[1737105552853,160.3554346,216.07,215.84,1.4477]
[1737105553056,160.3554346,216.07,215.87,4.6329]
[1737105553456,160.3554346,216.05,215.84,2.91]
[1737105553655,160.3554346,216.05,215.85,3.96952911]
[1737105553954,4.6316,215.94,215.88,4.6328]
[1737105554155,160.3554346,216.05,215.84,2.91]
[1737105554352,174.2554346,216.05,215.85,3.96957966]
[1737105554553,174.2554346,216.05,215.85,5.13245253]
[1737105554554,160.3554346,216.04,215.85,5.13245253]
[1737105554755,174.2554346,216.04,215.85,5.13245253]
[1737105554958,160.3554346,216.03,215.85,5.13245253]
[1737105555353,4.6327,215.89,215.83,4.6337]
[1737105555552,5.0,215.98,215.81,1.4377]
[1737105555762,2.9702,215.97,215.81,1.4377]
[1737105556060,4.497,215.97,215.81,1.4377]
[1737105556455,4.497,215.97,215.82,5.13728534]
[1737105557164,4.6322,215.91,215.81,1.4377]
[1737105557351,4.497,215.97,215.81,1.4377]
[1737105558062,4.6328,215.88,215.82,4.6341]
[1737105558760,4.497,215.97,215.57,29.12525384]
[1737105559063,4.497,215.97,215.7,21.08539853]
[1737105559262,164.8524346,215.97,215.71,11.54049853]
[1737105559459,4.6333,215.87,215.8,4.6346]
[1737105559657,178.7524346,215.97,215.73,7.56769736]
[1737105559865,178.7524346,215.97,215.74,5.18310035]
[1737105560067,178.7524346,215.97,215.75,3.97204039]
[1737105560264,178.7524346,215.97,215.75,9.77145409]
[1737105560664,4.6344,215.81,215.75,9.77145409]
[1737105561163,4.6344,215.81,215.75,4.6356]
[1737105562262,4.6047,215.87,215.74,4.6358]
[1737105562464,4.6346,215.8,215.74,4.6358]
[1737105562972,4.635,215.78,215.72,4.6362]
[1737105563167,4.6047,215.87,215.7,4.5649]
[1737105563366,4.6047,215.87,215.71,3.97133604]
[1737105563570,4.6047,215.87,215.7,4.5649]
[1737105563765,4.6047,215.87,215.74,4.6358]
[1737105563766,4.6346,215.8,215.74,4.6358]
[1737105564569,86.74,215.91,215.7,4.5649]
[1737105564770,86.74,215.91,215.71,11.51964452]
[1737105564973,86.74,215.91,215.72,3.96624029]
[1737105565167,4.6331,215.87,215.73,3.96624029]
[1737105565472,4.6331,215.87,215.7,4.5649]
[1737105565664,4.6331,215.87,215.71,11.52121569]
[1737105565869,86.74,215.91,215.72,3.9665554]
[1737105566069,4.6333,215.86,215.73,3.9665554]
[1737105566269,86.74,215.91,215.71,5.12886376]
[1737105566468,86.74,215.91,215.72,3.96623313]
[1737105566767,4.6339,215.84,215.74,5.12886376]
[1737105566968,4.6339,215.84,215.77,4.635]
[1737105567271,86.74,215.91,215.74,5.12886376]
[1737105567569,86.74,215.91,215.73,4.6361]
[1737105567873,4.6349,215.79,215.73,4.6361]
[1737105568372,4.635,215.78,215.73,4.6361]
[1737105569166,4.4013,215.85,215.7,4.5649]
[1737105569364,1.4652,215.85,215.71,3.96242835]
[1737105569569,1.4176,215.9,215.7,4.5649]
[1737105569773,1.4176,215.9,215.71,3.96219537]
[1737105569971,1.4176,215.9,215.71,5.12411741]
[1737105570172,1.4176,215.9,215.72,3.96157863]
[1737105570371,4.6339,215.83,215.73,3.96157863]
[1737105570575,2.9962,215.95,215.72,5.12411741]
[1737105570771,4.6319,215.93,215.73,11.49996807]
[1737105570972,4.6319,215.93,215.74,16.62408548]
[1737105571172,2.9962,215.95,215.75,16.47996807]
[1737105571379,2.9962,215.95,215.76,11.49996807]
[1737105571572,2.9962,215.95,215.77,11.49345667]
[1737105571781,2.9962,215.95,215.78,11.49345667]
[1737105571971,4.6316,215.94,215.79,11.49345667]
[1737105572171,4.6316,215.94,215.8,3.95684499]
[1737105572372,4.6316,215.94,215.81,8.49244499]
[1737105572573,2.9962,215.95,215.81,4.5356]
[1737105572774,4.632,215.92,215.81,4.5356]
[1737105573279,4.632,215.92,215.85,4.6333]
[1737105573475,4.6311,215.97,215.83,4.98]
[1737105573679,186.33739097,216.02,215.84,3.95702167]
[1737105573874,186.33739097,216.02,215.83,4.98]
[1737105574079,186.33739097,216.02,215.84,3.95621199]
[1737105574382,6.1036,216.02,215.94,4.6315]
[1737105574575,1.4736,216.02,215.94,4.6315]
[1737105575784,4.6303,216.0,215.94,4.6315]
[1737105576380,4.6303,216.0,215.92,4.6318]
[1737105577077,4.6305,215.99,215.92,4.6318]
[1737105577479,1.4736,216.02,215.85,9.08418074]
[1737105577780,1.4736,216.02,215.85,5.12171538]
[1737105578084,1.4736,216.02,215.89,4.6326]
[1737105579080,4.6312,215.96,215.89,4.6326]
[1737105579281,160.3554346,216.0,215.89,4.6326]
[1737105579481,160.3554346,216.01,215.89,4.6326]
[1737105579782,4.6314,215.95,215.89,4.6326]
[1737105580476,4.6318,215.93,215.86,4.6331]
[1737105580879,4.6318,215.93,215.82,4.96]
[1737105581478,4.6318,215.93,215.81,9.4956]
[1737105583179,160.3554346,215.95,215.87,4.633]
[1737105583484,4.632,215.92,215.87,4.633]
[1737105584183,4.6322,215.91,215.81,2.9683]
[1737105584383,1.5067,215.94,215.81,2.9683]
[1737105584587,1.5067,215.94,215.82,4.6339]
[1737105584782,4.6333,215.86,215.76,4.96]
[1737105585380,4.6337,215.84,215.68,7.58219429]
[1737105585576,4.6337,215.84,215.65,3.0818]
[1737105585777,4.6337,215.84,215.66,16.52797602]
[1737105585978,4.6337,215.84,215.67,11.56797602]
[1737105586181,4.6337,215.84,215.68,11.56797602]
[1737105586384,4.6337,215.84,215.69,11.56797602]
[1737105586588,4.6341,215.83,215.7,11.56797602]
[1737105586782,4.96,215.91,215.71,3.98312867]
[1737105586988,4.96,215.91,215.69,5.15033873]
[1737105587290,18.87,215.91,215.7,10.35134905]
[1737105587486,18.87,215.91,215.73,4.6361]
[1737105587683,160.3554346,215.9,215.73,4.6361]
[1737105588186,160.3554346,215.89,215.73,4.6361]
[1737105588387,160.3554346,215.89,215.72,4.6362]
[1737105588588,1.5029,215.88,215.72,4.6362]
[1737105588791,161.8583346,215.88,215.72,4.6362]
[1737105589685,161.8583346,215.88,215.69,4.6369]
[1737105589989,161.8583346,215.88,215.65,3.0818]
[1737105590597,161.8583346,215.88,215.66,9.15827466]
[1737105590598,160.3554346,215.83,215.66,9.15827466]
[1737105590787,160.3554346,215.83,215.67,3.99350692]
[1737105590987,160.3554346,215.86,215.68,3.99350692]
[1737105591190,160.3554346,215.86,215.69,3.99350692]
[1737105591395,160.3554346,215.87,215.69,5.16476774]
[1737105591693,4.6344,215.81,215.69,5.16476774]
[1737105591895,4.6344,215.81,215.65,3.0818]
[1737105592092,4.6344,215.81,215.66,11.59691781]
[1737105592298,4.6344,215.81,215.67,3.99312602]
[1737105592499,4.6346,215.8,215.73,4.6359]
[1737105592699,4.6346,215.8,215.67,5.16298923]
[1737105592897,4.6346,215.8,215.68,9.15628485]
[1737105593104,4.6346,215.8,215.69,3.99329562]
[1737105593301,4.6346,215.8,215.68,5.16298923]
[1737105593601,4.6346,215.8,215.75,4.6356]
[1737105594397,4.94,215.81,215.67,5.16429287]
[1737105594598,1.4289,215.79,215.67,5.16429287]
[1737105594998,4.6359,215.74,215.65,4.6378]
[1737105595296,1.4289,215.79,215.65,4.6378]
[1737105595706,1.4185,215.78,215.65,4.6378]
[1737105595900,1.4185,215.78,215.58,7.60671836]
[1737105596107,1.4185,215.78,215.51,4.98]
[1737105596406,1.4185,215.78,215.55,5.41763764]
[1737105596605,4.6378,215.65,215.58,4.6393]
[1737105597203,18.91,215.72,215.55,5.16246988]
[1737105597503,18.91,215.72,215.52,4.6404]
[1737105597800,18.91,215.72,215.46,3.98956032]
[1737105598006,179.2654346,215.72,215.43,7.5973629]
[1737105598307,179.2654346,215.72,215.42,5.02]
[1737105598506,179.2654346,215.72,215.43,11.58126226]
[1737105598800,179.2654346,215.72,215.44,11.58126226]
[1737105599006,160.3554346,215.71,215.45,10.3674451]
[1737105599205,174.2654346,215.71,215.46,16.5901996]
[1737105599406,13.91,215.71,215.46,10.17111253]
[1737105599602,0.1932,215.7,215.47,5.5273126]
[1737105599803,86.82,215.69,215.47,1.5472]
[1737105600000,4.6389,215.6,215.5,4.6409]
[1737105600201,5.02,215.64,215.47,1.5472]
[1737105601408,5.02,215.64,215.18,3.611432]
[1737105601705,18.91,215.64,215.33,1.5285]
[1737105601910,18.91,215.64,215.34,5.4757309]
[1737105602103,27.8,215.61,215.34,1.4956]
[1737105602307,0.1932,215.6,215.34,6.63429878]
[1737105602810,0.1932,215.6,215.34,1.4956]
[1737105603008,0.1932,215.6,215.34,6.5956]
[1737105603209,0.1932,215.6,215.41,4.6429]
[1737105603210,14.1032,215.6,215.41,4.6429]
[1737105603908,4.6411,215.5,215.41,4.6429]
[1737105604314,4.6411,215.5,215.29,6.34837608]
[1737105604315,86.84,215.52,215.36,4.6439]
[1737105604514,1.494,215.49,215.36,4.6439]
[1737105604814,1.494,215.49,215.41,4.6429]
[1737105605011,1.494,215.49,215.34,5.12]
[1737105605309,1.5165,215.52,215.4,4.6431]
[1737105605609,4.6402,215.54,215.36,3.95656532]
[1737105606010,4.6402,215.54,215.37,5.11571984]
[1737105606309,4.6402,215.54,215.46,4.6418]
[1737105606513,4.6402,215.54,215.37,5.11571984]
[1737105607107,4.6402,215.54,215.35,8.11791984]
[1737105607314,4.6405,215.53,215.44,4.6422]
[1737105607916,4.6405,215.53,215.35,3.0022]
[1737105608113,4.6405,215.53,215.45,4.642]
[1737105608717,4.6408,215.51,215.43,4.6425]
[1737105609417,5.12,215.56,215.36,5.1]
[1737105609914,4.6414,215.49,215.41,4.6429]
[1737105610624,5.12,215.56,215.36,5.1]
[1737105611313,5.12,215.56,215.41,4.6428]
[1737105611511,5.12,215.56,215.36,5.1]
[1737105612014,4.641,215.51,215.36,5.1]
[1737105612916,4.641,215.51,215.44,4.6423]
[1737105613219,5.12,215.56,215.29,9.04051984]
[1737105613220,4.6415,215.48,215.29,9.04051984]
[1737105613412,5.12,215.56,215.3,3.7657475]
[1737105613616,5.12,215.56,215.3,2.9123]
[1737105613814,4.6416,215.48,215.3,2.9123]
[1737105614822,4.6409,215.51,215.31,0.85333558]
[1737105615023,5.12,215.56,215.31,0.85333558]
[1737105615223,4.641,215.5,215.38,4.6435]
[1737105615423,4.641,215.5,215.37,5.1]
[1737105615618,4.641,215.5,215.38,1.499]
[1737105615817,4.641,215.5,215.44,4.6423]
[1737105617123,5.12,215.56,215.38,1.499]
[1737105617320,1.494,215.58,215.38,1.499]
[1737105617625,1.494,215.58,215.39,1.5301]
[1737105618126,1.494,215.58,215.4,1.4776]
[1737105618321,4.64,215.55,215.49,4.6412]
[1737105618522,1.4633,215.59,215.4,1.4776]
[1737105619526,1.4633,215.59,215.45,4.6419]
[1737105619527,4.6397,215.57,215.45,4.6419]
[1737105619727,1.4633,215.59,215.4,1.4776]
[1737105620121,4.6403,215.54,215.46,4.6418]
[1737105620321,1.4633,215.59,215.46,4.6418]
[1737105621528,1.4633,215.59,215.4,1.4776]
[1737105623227,4.6405,215.53,215.46,4.6417]
[1737105623427,1.4633,215.59,215.46,4.6417]
[1737105623829,1.4633,215.59,215.4,1.4776]
[1737105624128,1.4633,215.59,215.47,4.6416]
[1737105624323,4.6404,215.53,215.47,4.6416]
[1737105625226,1.4633,215.59,215.4,1.4776]
[1737105625726,4.6405,215.53,215.46,4.6417]
[1737105626432,1.4633,215.59,215.46,4.6417]
[1737105626728,1.4633,215.59,215.4,1.4776]
[1737105627121,4.641,215.5,215.4,1.4776]
[1737105627527,4.641,215.5,215.43,4.6425]
[1737105628136,4.641,215.5,215.44,4.6423]
[1737105628629,4.6409,215.51,215.43,4.6423]
[1737105628829,4.6409,215.51,215.39,1.5301]
[1737105629031,5.06,215.55,215.39,1.5301]
[1737105629221,4.6406,215.52,215.39,1.5301]
[1737105630026,4.641,215.5,215.39,1.5301]
[1737105630629,4.641,215.5,215.45,4.6421]
[1737105631024,160.3554346,215.52,215.41,4.6429]
[1737105631628,160.3554346,215.52,215.34,5.06]
[1737105631629,160.3554346,215.49,215.31,3.81210094]
[1737105631830,1.5257,215.48,215.28,3.81210094]
[1737105632025,1.5257,215.48,215.29,4.66559745]
[1737105632331,160.3554346,215.45,215.34,4.6444]
[1737105632526,160.3554346,215.45,215.35,2.984]
[1737105633034,164.9971346,215.47,215.41,4.6429]
[1737105633531,160.3554346,215.47,215.24,1.4925]
[1737105633733,4.6425,215.43,215.37,4.6438]
[1737105635026,4.6434,215.4,215.33,4.6445]
[1737105635229,160.3554346,215.44,215.28,2.984]
[1737105635426,160.3554346,215.44,215.29,3.8369074]
[1737105635631,160.3554346,215.43,215.33,4.6445]
[1737105635923,4.6423,215.45,215.28,8.064]
[1737105636128,160.3554346,215.46,215.29,3.83644278]
[1737105636429,4.6431,215.41,215.36,4.644]
[1737105637733,4.6433,215.4,215.33,4.6445]
[1737105638035,4.6433,215.4,215.28,8.044]
[1737105638240,160.3554346,215.42,215.29,3.8448732]
[1737105638432,4.643,215.41,215.35,4.6442]
[1737105638934,160.3554346,215.44,215.28,8.044]
[1737105639135,160.3554346,215.45,215.29,3.85011908]
[1737105639437,160.3554346,215.45,215.3,3.85011908]
[1737105639628,160.3554346,215.45,215.31,3.85011908]
[1737105639932,160.3554346,215.45,215.35,4.6442]
[1737105640435,160.3554346,215.45,215.32,4.6447]
[1737105640436,4.6434,215.4,215.32,4.6447]
[1737105640632,160.3554346,215.45,215.33,3.86259569]
[1737105640834,160.3554346,215.45,215.26,5.06]
[1737105641035,4.643,215.41,215.27,8.92253028]
[1737105641234,160.3554346,215.42,215.28,3.86253028]
[1737105641433,160.3554346,215.42,215.29,3.86253028]
[1737105641637,160.3554346,215.42,215.3,3.86253028]
[1737105641937,160.3554346,215.42,215.31,3.86253028]
[1737105642134,160.3554346,215.42,215.32,3.86512642]
[1737105642334,160.3554346,215.42,215.25,2.9695]
[1737105642534,160.3554346,215.42,215.26,3.86567715]
[1737105642739,160.3554346,215.42,215.27,3.86567715]
[1737105642939,160.3554346,215.41,215.28,3.86567715]
[1737105643239,174.2654346,215.41,215.29,3.86567715]
[1737105643434,0.2014,215.4,215.2,5.06]
[1737105643635,0.2014,215.4,215.28,4.6457]
[1737105643636,4.644,215.37,215.28,4.6457]
[1737105643839,0.2014,215.4,215.29,3.86551771]
[1737105644039,0.2014,215.4,215.28,4.6457]
[1737105644040,160.5568346,215.4,215.28,4.6457]
[1737105644339,4.6443,215.35,215.29,3.8653504]
[1737105644540,4.6443,215.35,215.27,4.646]
[1737105644741,4.6443,215.35,215.28,3.86503846]
[1737105644939,4.6454,215.3,215.18,1.4416]
[1737105645238,2.9797,215.34,215.19,3.86564776]
[1737105645439,4.6451,215.32,215.23,4.6468]
[1737105645639,2.9797,215.34,215.24,3.86268551]
[1737105645837,2.9797,215.34,215.18,1.4416]
[1737105646038,2.9797,215.34,215.19,3.86253026]
[1737105646238,2.9797,215.34,215.2,3.86253026]
[1737105646438,4.6452,215.31,215.22,4.6469]
[1737105646739,2.9797,215.34,215.18,1.4416]
[1737105646938,2.9797,215.34,215.19,3.8600652]
[1737105647137,2.9797,215.34,215.18,1.4416]
[1737105647138,4.6455,215.29,215.21,4.6471]
[1737105647333,2.9797,215.34,215.21,4.6471]
[1737105647544,2.9797,215.34,215.16,1.4819]
[1737105647837,2.9797,215.34,215.17,3.85669336]
[1737105648044,2.9797,215.34,215.18,3.85683167]
[1737105648241,2.9797,215.34,215.16,1.4819]
[1737105648543,2.9797,215.34,215.17,3.85421273]
[1737105648743,2.9797,215.34,215.18,3.85421273]
[1737105648944,2.9797,215.34,215.19,3.85421273]
[1737105649142,2.9797,215.34,215.2,3.85421273]
[1737105649340,2.9797,215.34,215.16,1.4819]
[1737105649644,2.9797,215.34,215.17,3.85146057]
[1737105649938,2.9797,215.34,215.18,3.85146057]
[1737105650136,2.9797,215.34,215.27,4.6458]
[1737105650336,2.9797,215.34,215.16,1.4819]
[1737105650537,1.509,215.34,215.17,3.84994731]
[1737105650737,4.644,215.37,215.18,3.84994731]
[1737105650945,4.644,215.37,215.19,3.84994731]
[1737105651145,87.1614,215.4,215.2,3.84994731]
[1737105651338,4.6447,215.33,215.26,4.6462]
[1737105651844,87.1614,215.4,215.26,4.6462]
[1737105652143,4.6449,215.32,215.26,4.6462]
[1737105652342,13.91,215.39,215.24,4.6466]
[1737105653641,174.2654346,215.39,215.24,4.6466]
[1737105653840,4.6453,215.31,215.24,4.6466]
[1737105654037,160.3554346,215.39,215.16,6.5419]
[1737105654245,247.3154346,215.4,215.17,3.84618563]
[1737105654446,247.3154346,215.4,215.18,3.84618563]
[1737105654646,247.3154346,215.4,215.19,3.84618563]
[1737105654847,247.3154346,215.4,215.35,4.6442]
[1737105655050,86.96,215.4,215.35,4.6442]
[1737105655343,86.96,215.4,215.26,5.08]
[1737105656445,4.644,215.36,215.23,4.6466]
[1737105656645,4.644,215.36,215.23,5.08]
[1737105656844,86.96,215.4,215.23,5.08]
[1737105657339,4.6445,215.34,215.28,4.6455]
[1737105658152,4.6441,215.36,215.23,5.08]
[1737105658345,86.96,215.4,215.23,5.08]
[1737105658752,4.6438,215.37,215.3,4.6451]
[1737105658944,4.6438,215.37,215.23,5.08]
[1737105659149,4.6438,215.37,215.24,1.4934]
[1737105659652,86.96,215.4,215.24,1.4934]
[1737105659950,4.6441,215.36,215.24,1.4934]
[1737105660857,86.96,215.4,215.24,1.4934]
[1737105661150,86.96,215.4,215.25,1.4728]
[1737105661553,4.6434,215.39,215.34,4.6444]
[1737105662151,4.6436,215.38,215.25,1.4728]
[1737105663155,4.6436,215.38,215.33,4.6447]
[1737105663763,86.96,215.4,215.25,1.4728]
[1737105664555,86.96,215.4,215.25,5.31831831]
[1737105664761,0.19383,215.44,215.25,5.31831831]
[1737105664964,0.19383,215.44,215.26,3.84551831]
[1737105665159,0.19383,215.44,215.27,3.84551831]
[1737105665365,0.19383,215.44,215.28,3.84551831]
[1737105665662,0.19383,215.44,215.43,4.6425]
[1737105666760,345.92270036,215.55,215.38,1.4756]
[1737105666959,350.56280036,215.55,215.49,4.6412]
[1737105667157,163.4047346,215.56,215.38,1.4756]
[1737105667559,160.3554346,215.56,215.38,1.4756]
[1737105667960,160.3554346,215.56,215.53,4.6403]
[1737105668158,184.97387416,215.59,215.53,4.6403]
[1737105668768,4.6392,215.59,215.52,4.6405]
[1737105669166,86.96,215.6,215.38,6.5556]
[1737105669364,4.6399,215.56,215.38,6.5556]
[1737105669567,86.96,215.6,215.38,6.5556]
[1737105669765,86.96,215.6,215.38,1.4756]
[1737105669971,4.6398,215.56,215.49,4.6412]
[1737105670170,4.6398,215.56,215.39,5.06]
[1737105670568,4.6398,215.56,215.49,4.6412]
[1737105670971,4.64,215.55,215.49,4.6412]
[1737105671171,4.64,215.55,215.48,4.6414]
[1737105671373,86.96,215.6,215.48,4.6414]
[1737105671673,247.3154346,215.6,215.48,4.6414]
[1737105672168,4.6402,215.54,215.48,4.6414]
[1737105672375,184.92392151,215.59,215.46,4.6418]
[1737105672672,184.92392151,215.59,215.39,5.06]
[1737105673069,184.92392151,215.59,215.45,4.6421]
[1737105673274,184.92392151,215.59,215.39,5.06]
[1737105673674,4.6406,215.52,215.46,4.6418]
[1737105673874,4.6406,215.52,215.39,5.06]
[1737105674472,4.6408,215.52,215.45,4.642]
[1737105674871,184.92392151,215.59,215.45,4.642]
[1737105675275,160.3554346,215.58,215.45,4.642]
[1737105675676,0.1984,215.57,215.45,4.642]
[1737105676675,4.6407,215.52,215.46,4.6419]
[1737105678578,160.3554346,215.55,215.38,1.4756]
[1737105678782,160.3554346,215.55,215.49,4.6412]
[1737105679176,160.3554346,215.56,215.38,1.4756]
[1737105679882,184.92392151,215.59,215.39,3.84782518]
[1737105680075,184.92392151,215.59,215.4,3.84782518]
[1737105680381,184.92392151,215.59,215.41,3.84782518]
[1737105680679,2.9766,215.65,215.38,1.4756]
[1737105680875,2.9766,215.65,215.39,3.84493325]
[1737105681081,4.6387,215.61,215.55,4.6399]
[1737105685077,4.6387,215.61,215.56,4.6397]
[1737105685272,2.9766,215.65,215.49,1.4309]
[1737105685478,4.6384,215.63,215.49,4.5156]